Cogmind - Beta 11 X8 *** ADVENTURER MODE // 2021.11.12 @ 18:54:42 Player: soymachine Result: Destroyed by S-27 Virus with Autogun Performance ------------- Evolutions (4) 2000 Regions Visited (11) 2200 Robots Destroyed (140) 700 Value Destroyed (4430) 4430 Prototype IDs (3) 60 Alien Tech Used (0) 0 Bonus (1255) 1255 TOTAL SCORE: 10645 Bonus ------- High Alert Combat Kills 555 Entered Garrisons 200 Used RIF Installer 500 Cogmind --------- Core Integrity 0/850 Matter 283/300 Energy 100/100 System Corruption 22% Temperature Cool (0) Movement Core (50) Location -6/Factory Parts ------- > --- POWER (1) -------- (None) > --- PROPULSION (4) --- (None) > --- UTILITY (8) ------ Advanced Melee Analysis Suite > --- WEAPON (2) ------- Axe > --- INVENTORY (5) ---- Heavy Laser Phase Cannon Remote Datajack Peak State ------------ > --- POWER ------------ Light Fission Core > --- PROPULSION ------- Carbon-fiber Leg Carbon-fiber Leg Carbon-fiber Leg Flexi-carbon Leg > --- UTILITY ---------- Advanced Heat Sink Structural Scanner Advanced Terrain Scanner Terrain Scan Processor Advanced Melee Analysis Suite Advanced Melee Analysis Suite Target Analyzer Target Analyzer > --- WEAPON ----------- Axe Power Sword > --- INVENTORY -------- Heavy Laser Phase Cannon Gauss Rifle Heavy Missile Launcher Remote Datajack [Rating: 58] Favorites ----------- Power Ion Engine Engine Ion Engine Power Core Light Fission Core Propulsion Improved Treads Treads Improved Treads Leg Carbon-fiber Leg Wheel Armored Huge Wheel Utility Target Analyzer Device Improved Heat Sink Storage Large Storage Unit Processor Target Analyzer Hackware System Shield Protection Hardened Medium Armor Plating Weapon EM Shotgun Energy Gun EM Shotgun Energy Cannon Phase Cannon Ballistic Gun Light Assault Rifle Ballistic Cannon Flak Cannon Launcher Shock Bomb Launcher Special Weapon Remote Datajack Slashing Weapon Axe Build | -11 -10 -10 -9 -9 -8 -7 -7 -7 -6 -6 -6 ------- Run | Scr Mat Min Mat Min Mat Fac Gar Fac Fac Was Fac Slots Evolved 8 | . . . 2 . 2 2 . . 2 . . Power . | . . . . . . . . . . . . Propulsion 2 | . . . 1 . 1 . . . . . . Utility 6 | . . . 1 . 1 2 . . 2 . . Weapon . | . . . . . . . . . . . . Parts Attached 104 | . 8 . 11 3 15 27 3 5 20 . 12 Power 8 | . . . 1 1 1 3 . . 2 . . Engine 4 | . . . 1 1 1 . . . 1 . . Core 4 | . . . . . . 3 . . 1 . . Reactor . | . . . . . . . . . . . . Propulsion 32 | . 2 . 2 1 6 9 1 2 7 . 2 Treads 9 | . 2 . 2 1 4 . . . . . . Leg 20 | . . . . . . 9 1 1 7 . 2 Wheel 3 | . . . . . 2 . . 1 . . . Hover . | . . . . . . . . . . . . Flight . | . . . . . . . . . . . . Utility 29 | . 3 . 3 1 4 2 1 2 9 . 4 Device 17 | . 1 . 2 1 2 . 1 2 5 . 3 Storage 4 | . 2 . 1 . 1 . . . . . . Processor 6 | . . . . . . 2 . . 4 . . Hackware 1 | . . . . . . . . . . . 1 Protection 1 | . . . . . 1 . . . . . . Artifact . | . . . . . . . . . . . . Weapon 35 | . 3 . 5 . 4 13 1 1 2 . 6 Energy Gun 19 | . 3 . 5 . 3 7 . . . . 1 Energy Cannon 1 | . . . . . . . . . . . 1 Ballistic Gun 3 | . . . . . . 2 . . . . 1 Ballistic Cannon 2 | . . . . . . 2 . . . . . Launcher 3 | . . . . . . 1 1 . . . 1 Special Weapon 1 | . . . . . . . . . . . 1 Impact Weapon . | . . . . . . . . . . . . Slashing Weapon 6 | . . . . . 1 1 . 1 2 . 1 Piercing Weapon . | . . . . . . . . . . . . Special Melee Weapon . | . . . . . . . . . . . . Unidentified Prototypes 3 | . . . 1 1 . . . . . . 1 Corrupted Parts 1 | . 1 . . . . . . . . . . System Corruption 1 | . 1 . . . . . . . . . . Parts Lost 49 | . . . 5 . 5 15 1 2 3 . 18 Power 7 | . . . 1 . 1 2 . 1 1 . 1 Propulsion 14 | . . . 1 . . 5 1 . 1 . 6 Utility 11 | . . . . . 1 2 . . 1 . 7 Weapon 17 | . . . 3 . 3 6 . 1 . . 4 Highest Loss Streak 8 | . . . 5 . 3 5 1 2 1 . 8 Average Slot Usage (%) 76 | . 85 100 90 96 80 61 72 44 80 100 41 Engine 4 | . 14 14 10 11 7 . . . . . . Core 2 | . . . . . . 5 7 3 3 6 . Treads 9 | . 12 28 33 33 15 . . . . . . Leg 11 | . 15 . . . . 17 20 11 22 26 6 Wheel 1 | . . . . . 10 2 . . . . . Device 11 | . 1 14 14 19 18 8 6 3 17 20 4 Storage 6 | . 14 14 11 11 9 7 7 3 . . . Processor 9 | . . . . . . 5 15 12 23 33 20 Energy Gun 8 | . 8 28 21 22 14 7 . . . . . Ballistic Gun 2 | . 20 . . . . . . . . . . Slashing Weapon 3 | . . . . . 1 3 . 2 11 13 5 Naked Turns . | . . . . . . . . . . . . Heaviest Build 65 | 12 31 31 53 57 65 38 38 38 18 16 16 Greatest Support 86 | 20 46 46 69 69 86 80 46 46 65 65 65 Greatest Overweight (x) 9 | . 2 . . . 2 9 1 . . . 3 Average Overweight (x) . | . . . . . . . . . . . . Largest Inventory Capacity 20 | . 15 15 20 20 20 15 15 15 5 5 5 Average Capacity 12 | . 13 15 19 20 17 15 15 9 5 5 5 Most Carried 20 | . 15 15 16 18 20 15 12 10 5 5 5 Average Carried 10 | . 10 15 13 15 16 14 9 6 4 5 3 Final Capacity 20 | 8 15 15 20 20 15 15 15 5 5 5 5 Final Carried 17 | 6 15 15 12 17 15 12 9 5 5 5 3 Class Distribution -------------------- 70% | Mutant 16% | Scavenger-Assassin 12% | Scavenger-Mutant Dominant Class ---------------- Mutant | -10/Materials Mutant | -10/Mines Mutant | -9/Materials Mutant | -9/Mines Mutant | -8/Materials Mutant | -7/Factory Scavenger-Mutant | -7/Garrison Scavenger-Mutant | -7/Factory Scavenger-Assassin | -6/Factory Scavenger-Assassin | -6/Waste Mutant | -6/Factory Resources | -11 -10 -10 -9 -9 -8 -7 -7 -7 -6 -6 -6 ----------- Run | Scr Mat Min Mat Min Mat Fac Gar Fac Fac Was Fac Matter Collected 1573 | 184 88 . 155 14 141 290 124 51 363 . 163 Remotely . | . . . . . . . . . . . . Salvage Created 5688 | . 446 28 1125 60 1432 1309 150 51 647 . 440 Parts 316 | . 30 5 58 4 98 63 5 2 30 . 21 Haulers Intercepted . | . . . . . . . . . . . . Recyclers Shooed 2 | . . . . . 1 . . 1 . . . Parts Field Recycled . | . . . . . . . . . . . . Retrieved Matter . | . . . . . . . . . . . . Parts Self-Destructed . | . . . . . . . . . . . . Prevented . | . . . . . . . . . . . . Kills | -11 -10 -10 -9 -9 -8 -7 -7 -7 -6 -6 -6 ------- Run | Scr Mat Min Mat Min Mat Fac Gar Fac Fac Was Fac Combat Hostiles Destroyed 110 | . 12 3 19 1 26 26 6 . 8 . 9 Melee 24 | . . . . . 4 9 . . 8 . 3 Guns 55 | . 12 1 15 1 15 11 . . . . . Cannons 5 | . . . . . . 1 2 . . . 2 AOE 19 | . . 2 2 . 3 4 4 . . . 4 Classes Destroyed 14 | . 4 . 5 . 2 1 . . 1 . 1 Worker 7 | . 1 . 3 . 1 . . . . . 2 Builder 12 | . . . 4 . 5 1 . . 1 . 1 Tunneler 1 | . . . . . . . . . . . 1 Recycler 6 | . . . 2 . 1 1 . 1 1 . . Watcher 4 | . 2 . 1 . 1 . . . . . . Swarmer 33 | . 5 3 4 . 7 8 3 . . . 3 Grunt 42 | . 7 . 10 . 10 10 . . 4 . 1 Brawler 2 | . . . 2 . . . . . . . . Duelist 9 | . . . 1 . 1 1 3 . 1 . 2 Sentry 11 | . . . 2 1 5 2 . . 1 . . Specialist 5 | . . . . . 2 3 . . . . . Hunter 3 | . . . . . . . . . 1 . 2 Programmer 4 | . . . . . . 2 . . 1 . 1 Heavy 1 | . . . . . 1 . . . . . . Best Kill Streak 16 | . 7 3 16 1 11 6 4 1 5 . 6 Combat Bots Only 8 | . 6 3 8 1 8 6 4 . 3 . 6 Max Kills in Single Turn 3 | . 1 2 3 1 3 3 1 1 1 . 3 Gunslinging 1 | . . . . . 1 . . . . . . Exploded 3 | . . 2 1 . 2 3 1 . . . 3 Melee 1 | . . . . . 1 1 . . 1 . 1 Uniques/NPCs Destroyed . | . . . . . . . . . . . . Combat | -11 -10 -10 -9 -9 -8 -7 -7 -7 -6 -6 -6 -------- Run | Scr Mat Min Mat Min Mat Fac Gar Fac Fac Was Fac Damage Taken 7401 | . 244 24 891 . 1313 2428 156 88 608 . 1649 Core 1883 | . 35 6 140 . 230 559 33 28 169 . 683 Absorbed by Shields . | . . . . . . . . . . . . Core Remaining (%) 63 | 100 . 83 . 65 58 . . 11 . . . Volleys Fired 240 | . 32 3 68 1 57 44 19 . . . 16 Largest 2 | . 2 1 2 2 2 2 2 . . . 2 Hottest 159 | . 90 40 90 90 90 124 80 . . . 159 Shots Fired 410 | . 64 3 110 2 107 78 28 . . . 18 Gun 360 | . 64 3 110 2 107 68 . . . . 6 Cannon 33 | . . . . . . 7 18 . . . 8 Launcher 16 | . . . . . . 3 10 . . . 3 Special 1 | . . . . . . . . . . . 1 Kinetic 106 | . 52 . . . . 32 18 . . . 4 Thermal 36 | . . . . . . 26 . . . . 10 Explosive 3 | . . . . . . . . . . . 3 Electromagnetic 264 | . 12 3 110 2 107 20 10 . . . . Robot Hit Streak 53 | . 24 1 23 3 53 34 9 . . . 18 Robot Miss Streak 2 | . 2 1 2 . 2 2 2 . . . . Penetration Max . | . . . . . . . . . . . . Secondary Targets 8 | . 1 . . . 4 3 . . . . . Max Gunslinging Chain 1 | . 1 . . . 1 1 . . . . . Shots Hit Robots 480 | . 56 2 89 2 114 105 25 2 46 . 39 Core Hits 275 | . 29 3 44 2 69 65 28 1 17 . 17 Critical Kills . | . . . . . . . . . . . . Critical Parts Destroyed 1 | . . . . . . 1 . . . . . Critical Strikes 17 | . . . 1 . 1 10 . . 3 . 2 Burn 1 | . . . . . . 1 . . . . . Destroy 2 | . . . . . . 2 . . . . . Corrupt 1 | . . . 1 . . . . . . . . Sever 13 | . . . . . 1 7 . . 3 . 2 Melee Attacks 163 | . . . . . 13 42 . 3 53 28 24 Impact . | . . . . . . . . . . . . Slashing 163 | . . . . . 13 42 . 3 53 28 24 Piercing . | . . . . . . . . . . . . Sneak Attacks 15 | . . . . . 3 1 . 1 5 . 5 Combat Hostiles 1 | . . . . . . . . . 1 . . Follow-up Attacks 4 | . . . . . . . . . 4 . . Damage Inflicted 12500 | . 573 75 1630 31 2689 2740 620 134 1890 . 2118 Guns 4785 | . 531 23 1341 31 1616 1113 . . . . 130 Cannons 806 | . . . . . . 162 384 . . . 260 Explosions 2047 | . 42 52 289 . 501 437 236 . . . 490 Melee 4857 | . . . . . 572 1028 . 129 1890 . 1238 Ramming 5 | . . . . . . . . 5 . . . Kinetic 1281 | . 354 . . . . 458 384 . . . 85 Thermal 1933 | . 42 52 289 . 501 744 . . . . 305 Explosive 490 | . . . . . . . . . . . 490 Electromagnetic 3934 | . 177 23 1341 31 1616 510 236 . . . . Impact . | . . . . . . . . . . . . Slashing 4857 | . . . . . 572 1028 . 129 1890 . 1238 Piercing . | . . . . . . . . . . . . Highest Corruption 22 | . 1 1 . . . 5 6 6 2 22 22 Average Corruption 8 | . 1 1 . . . 1 5 6 1 14 22 Corruption Purged . | . . . . . . . . . . . . Effects 62 | . . 1 . . . 4 13 5 2 11 26 Message Errors 18 | . . 1 . . . . 3 2 2 5 5 Matter Fused 14 | . . . . . . . 3 1 . . 10 Heat Flow Errors 6 | . . . . . . . 2 . . 2 2 Energy Discharges 11 | . . . . . . . 1 2 . 2 6 Data Loss (minor) 7 | . . . . . . . 3 . . 1 3 Data Loss (major) 2 | . . . . . . 2 . . . . . Misdirections 1 | . . . . . . . . . . 1 . Weapon Failures 3 | . . . . . . 2 1 . . . . Overload Shots . | . . . . . . . . . . . . Overflow Damage 820 | . 7 . . . 110 17 13 67 142 . 464 Projectiles 31 | . . . . . . . . . . . 31 Explosions 74 | . 7 . . . . . 13 . . . 54 Melee 715 | . . . . . 110 17 . 67 142 . 379 Knockbacks 34 | . . . . . . 8 26 . . . . Impact . | . . . . . . . . . . . . Kinetic 34 | . . . . . . 8 26 . . . . Secondary . | . . . . . . . . . . . . Self-Inflicted Damage 341 | . . . 125 . 27 44 49 2 . . 94 Shots 14 | . . . 4 . 1 1 6 . . . 2 Rammed 1 | . . . . . . . . 1 . . . Targets Rammed 1 | . . . . . . . . 1 . . . Kicked . | . . . . . . . . . . . . Crushed . | . . . . . . . . . . . . Highest Temperature 227 | . 84 . 213 . 15 75 227 . . 175 146 Average Temperature 56 | . 23 . 90 . 5 19 114 . . 83 38 Received Heat Transfer 2052 | . 150 . 444 . 441 714 . 63 144 . 96 Siege Activations . | . . . . . . . . . . . . Robots Corrupted 7 | . . . 2 . 4 1 . . . . . Combat Hostiles 7 | . . . 2 . 4 1 . . . . . Parts Fried 26 | . 1 . 8 . 15 2 . . . . . Impact Corruptions . | . . . . . . . . . . . . Robots Melted . | . . . . . . . . . . . . Combat Hostiles . | . . . . . . . . . . . . Parts Melted 2 | . . . . . . 2 . . . . . Heat Transferred 2612 | . 50 50 200 . 500 1442 . . . . 370 Parts Sabotaged . | . . . . . . . . . . . . Parts Stolen . | . . . . . . . . . . . . Parts Stripped . | . . . . . . . . . . . . Power Chain Reactions 12 | . 1 1 4 . 4 2 . . . . . Missiles Intercepted . | . . . . . . . . . . . . Alert | -11 -10 -10 -9 -9 -8 -7 -7 -7 -6 -6 -6 ------- Run | Scr Mat Min Mat Min Mat Fac Gar Fac Fac Was Fac Peak Influence 775 | . 230 120 481 147 775 645 499 318 328 49 188 Initial 364 | . . 50 39 127 48 302 364 226 133 43 29 Average 266 | . 100 95 241 146 450 470 464 271 189 46 85 Maximum Alert Level 3 | . 1 . 2 . 3 2 2 1 1 . . Low Security (%) 50 | . 96 100 42 100 24 . . . 54 100 100 Level 1 21 | . 3 . 36 . 7 39 14 100 45 . . Level 2 25 | . . . 20 . 52 60 85 . . . . Level 3 2 | . . . . . 14 . . . . . . Level 4 . | . . . . . . . . . . . . Level 5 . | . . . . . . . . . . . . High Security . | . . . . . . . . . . . . Max Security . | . . . . . . . . . . . . Squads Dispatched 28 | . 2 . 3 . 5 9 . 1 3 . 5 Investigation 3 | . 2 . . . . 1 . . . . . Extermination 4 | . . . . . . 1 . . 1 . 2 Reinforcement 14 | . . . 3 . 2 3 . 1 2 . 3 Assault . | . . . . . . . . . . . . Garrison 7 | . . . . . 3 4 . . . . . Intercept . | . . . . . . . . . . . . Construction Impeded 1 | . . . 1 . . . . . . . . Haulers Reinforced 1 | . . . . . . . . . 1 . . Active Scanning Responses . | . . . . . . . . . . . . Cargo Convoy Interrupts 1 | . . . . . . 1 . . . . . Stealth | -11 -10 -10 -9 -9 -8 -7 -7 -7 -6 -6 -6 --------- Run | Scr Mat Min Mat Min Mat Fac Gar Fac Fac Was Fac Distress Signals 11 | . 1 . 5 . 4 1 . . . . . Communications Jammed . | . . . . . . . . . . . . Distress Signals . | . . . . . . . . . . . . Times Spotted 196 | . 16 3 33 2 36 49 7 6 9 9 26 Peak Tracking Total 11 | . 6 2 9 2 9 11 5 3 3 6 9 Tactical Retreats 25 | . 1 . 3 . 8 6 1 2 . 1 3 Traps | -11 -10 -10 -9 -9 -8 -7 -7 -7 -6 -6 -6 ------- Run | Scr Mat Min Mat Min Mat Fac Gar Fac Fac Was Fac Traps Triggered 8 | . 2 . . . . 2 2 . 1 . 1 Indirectly 1 | . . . . . . 1 . . . . . Trap Hack Attempts . | . . . . . . . . . . . . Triggered . | . . . . . . . . . . . . Disarmed . | . . . . . . . . . . . . Reprogrammed . | . . . . . . . . . . . . Reused . | . . . . . . . . . . . . Traps Extracted . | . . . . . . . . . . . . Installed . | . . . . . . . . . . . . Triggered 1 | . . . . . . 1 . . . . . Machines | -11 -10 -10 -9 -9 -8 -7 -7 -7 -6 -6 -6 ---------- Run | Scr Mat Min Mat Min Mat Fac Gar Fac Fac Was Fac Machines Disabled 2 | . . . . . 1 1 . . . . . Max in Single Turn 1 | . . . . . 1 1 . . . . . Machines Sabotaged . | . . . . . . . . . . . . Garrisons Compromised 1 | . . . . . . 1 . . . . . Overloaded Fab Kills . | . . . . . . . . . . . . Hacking | -11 -10 -10 -9 -9 -8 -7 -7 -7 -6 -6 -6 --------- Run | Scr Mat Min Mat Min Mat Fac Gar Fac Fac Was Fac Machines Accessed 12 | . . . . . 2 5 . 2 2 . 1 Terminals 9 | . . . . . 2 3 . 1 2 . 1 Fabricators 2 | . . . . . . 1 . 1 . . . Repair Stations . | . . . . . . . . . . . . Recycling Units . | . . . . . . . . . . . . Scanalyzers . | . . . . . . . . . . . . Garrison Access 1 | . . . . . . 1 . . . . . Total Hacks 16 | . . . . . 4 6 . 3 2 . 1 Successful 9 | . . . . . 4 2 . 2 1 . . Failed 7 | . . . . . . 4 . 1 1 . 1 Catastrophic 3 | . . . . . . 2 . . . . 1 Database Lockouts . | . . . . . . . . . . . . Manual 8 | . . . . . 3 3 . . 1 . 1 Terminals 13 | . . . . . 4 4 . 2 2 . 1 Fabricators 2 | . . . . . . 1 . 1 . . . Repair Stations . | . . . . . . . . . . . . Recycling Units . | . . . . . . . . . . . . Scanalyzers . | . . . . . . . . . . . . Garrison Access 1 | . . . . . . 1 . . . . . Terminal Hacks 3 | . . . . . 1 . . 1 1 . . Open DSF 2 | . . . . . . . . 1 1 . . Zone Layout 1 | . . . . . 1 . . . . . . Fabricator Hacks 2 | . . . . . . 1 . 1 . . . Build 2 | . . . . . . 1 . 1 . . . Repair Station Hacks . | . . . . . . . . . . . . Recycling Unit Hacks . | . . . . . . . . . . . . Scanalyzer . | . . . . . . . . . . . . Garrison Access Hacks 1 | . . . . . . 1 . . . . . Unlock Access 1 | . . . . . . 1 . . . . . Unauthorized Hacks 3 | . . . . . 3 . . . . . . Terminals 3 | . . . . . 3 . . . . . . Assimilate 1 | . . . . . 1 . . . . . . Botnet 1 | . . . . . 1 . . . . . . Disrupt 1 | . . . . . 1 . . . . . . Fabricators . | . . . . . . . . . . . . Repair Stations . | . . . . . . . . . . . . Recycling Units . | . . . . . . . . . . . . Scanalyzers . | . . . . . . . . . . . . Garrison Access . | . . . . . . . . . . . . Data Cores Recovered . | . . . . . . . . . . . . Used . | . . . . . . . . . . . . Hacking Detections 9 | . . . . . 1 5 . 1 1 . 1 Full Trace Events . | . . . . . . . . . . . . Feedback Events . | . . . . . . . . . . . . Feedback Blocked . | . . . . . . . . . . . . Robot Schematics Acquired . | . . . . . . . . . . . . Robots Built 1 | . . . . . . 1 . . . . . Authchips . | . . . . . . . . . . . . Time 40 | . . . . . . 40 . . . . . Total Robot Build Rating 1 | . . . . . . 1 . . . . . Part Schematics Acquired . | . . . . . . . . . . . . Parts Built 2 | . . . . . . . . 2 . . . Authchips . | . . . . . . . . . . . . Time 47 | . . . . . . . . 47 . . . Total Part Build Rating 10 | . . . . . . . . 10 . . . Parts Repaired . | . . . . . . . . . . . . Time . | . . . . . . . . . . . . Parts Recycled . | . . . . . . . . . . . . Recycled Matter . | . . . . . . . . . . . . Retrieved Matter . | . . . . . . . . . . . . Retrieved Components . | . . . . . . . . . . . . Parts Scanalyzed . | . . . . . . . . . . . . Part Schematics Acquired . | . . . . . . . . . . . . Parts Damaged . | . . . . . . . . . . . . Bothacking | -11 -10 -10 -9 -9 -8 -7 -7 -7 -6 -6 -6 ------------ Run | Scr Mat Min Mat Min Mat Fac Gar Fac Fac Was Fac Used RIF Installer 1 | . . . . . . . 1 . . . . Robots Hacked 1 | . . . . . . . . . . . 1 Non-combat 1 | . . . . . . . . . . . 1 Combat . | . . . . . . . . . . . . Robot Hacks Applied 1 | . . . . . . . . . . . 1 no_distress 1 | . . . . . . . . . . . 1 Relay Couplers Released 4 | . . . . . . 4 . . . . . Programmers 4 | . . . . . . 4 . . . . . Fabnet Peak Effective % . | . . . . . . . . . . . . Robots Rewired . | . . . . . . . . . . . . Allies Hacked . | . . . . . . . . . . . . Hacks Repelled . | . . . . . . . . . . . . Allies | -11 -10 -10 -9 -9 -8 -7 -7 -7 -6 -6 -6 -------- Run | Scr Mat Min Mat Min Mat Fac Gar Fac Fac Was Fac Total Allies 1 | . . . . . . 1 . . . . . Largest Group 1 | . . . . . . 1 . . . . . Highest-Rated Group 8 | . . . . . . 8 . . . . . Highest-Rated Ally 8 | . . . . . . 8 . . . . . Total Orders . | . . . . . . . . . . . . Ally Attacks . | . . . . . . . . . . . . Total Damage . | . . . . . . . . . . . . Kills . | . . . . . . . . . . . . Allies Corrupted . | . . . . . . . . . . . . Allies Melted . | . . . . . . . . . . . . Intel | -11 -10 -10 -9 -9 -8 -7 -7 -7 -6 -6 -6 ------- Run | Scr Mat Min Mat Min Mat Fac Gar Fac Fac Was Fac Robot Analysis Total . | . . . . . . . . . . . . Derelict Logs Recovered 1 | . . . . 1 . . . . . . . Drone Launches . | . . . . . . . . . . . . Drone Recoveries . | . . . . . . . . . . . . Exploration | -11 -10 -10 -9 -9 -8 -7 -7 -7 -6 -6 -6 ------------- Run | Scr Mat Min Mat Min Mat Fac Gar Fac Fac Was Fac Turns Passed 5412 | . 561 198 544 350 787 938 328 188 663 303 552 Spaces Moved 2856 | 1 272 114 166 211 339 330 189 222 342 189 481 Core 433 | . . . . . . 12 . 141 1 . 279 Treads 728 | . 106 114 166 211 131 . . . . . . Legs 1340 | 1 166 . . . . 171 189 81 341 189 202 Wheels 355 | . . . . . 208 147 . . . . . Hover . | . . . . . . . . . . . . Flight . | . . . . . . . . . . . . Fastest Speed 50 | 120 120 160 160 160 100 100 120 50 50 120 50 Average Speed 123 | 120 149 160 160 160 123 137 137 75 119 120 84 Slowest Speed 500 | 120 260 160 160 160 160 500 190 120 120 120 200 Overloaded Moves . | . . . . . . . . . . . . Propulsion Burnouts . | . . . . . . . . . . . . Robots Hopped . | . . . . . . . . . . . . Cave-ins Triggered . | . . . . . . . . . . . . Exploration Rate (%) 33 | 2 48 48 26 62 37 13 33 12 9 86 22 Regions Visited 11 Branch Regions 2 Pre-discovered Areas . | . . . . . . . . . . . . Known Exits Taken 1 | . . . . . . 1 . . . . . Unknown Exits Taken 7 | 1 1 1 1 1 1 . . 1 . . . Scrap Searched 1 | . . . . 1 . . . . . . . Spaces Dug 39 | . . . . . . 4 . 1 6 25 3 Terrain Destroyed 123 | . 2 3 26 . 22 11 . 1 6 25 27 Melee 39 | . . . . . . 4 . 1 6 25 3 Projectile . | . . . . . . . . . . . . AOE 84 | . 2 3 26 . 22 7 . . . . 24 Terrain Rammed . | . . . . . . . . . . . . Walls Destroyed . | . . . . . . . . . . . . Machines Disabled . | . . . . . . . . . . . . Actions | -11 -10 -10 -9 -9 -8 -7 -7 -7 -6 -6 -6 --------- Run | Scr Mat Min Mat Min Mat Fac Gar Fac Fac Was Fac Total 4091 | . 373 127 333 221 583 666 228 242 520 226 572 Wait 626 | . 37 11 83 . 136 211 9 . 98 13 28 Move 2846 | . 271 113 165 210 338 330 187 221 342 188 481 Hop . | . . . . . . . . . . . . Pick Up 59 | . 16 . 5 5 12 9 . 2 4 . 6 Fast Attach 31 | . 3 . . . 1 8 . 1 17 . 1 Attach 43 | . 1 . 7 . 7 12 3 4 1 . 8 Detach 3 | . . . . 1 . . . 2 . . . Swap 30 | . 4 . 4 3 7 7 . . 2 . 3 Drop 47 | . 9 . 1 1 12 3 . 8 8 . 5 Fire 240 | . 32 3 68 1 57 44 19 . . . 16 Melee 155 | . . . . . 13 42 . 3 48 25 24 Ram 1 | . . . . . . . . 1 . . . Kick . | . . . . . . . . . . . . Crush . | . . . . . . . . . . . . Escape Stasis 10 | . . . . . . . 10 . . . . Rewire . | . . . . . . . . . . . . Trap . | . . . . . . . . . . . . Miscellaneous . | . . . . . . . . . . . . Route ------- -11/Scrapyard -10/Materials -10/Mines (discovered 2 exits: [*Mat x2]) -9/Materials -9/Mines -8/Materials -7/Factory -7/Garrison -7/Factory -6/Factory (discovered 2 exits: [*Fac x2]) -6/Waste -6/Factory History --------- Turn | Location | Event 1 | -11/Scrapyard | Discovered new exit (range 0) 1 | -11/Scrapyard | Entered Materials 301 | -10/Materials | Build established: Mutant 528 | -10/Materials | Discovered new exit (range 16) 562 | -10/Materials | Entered Mines 626 | -10/Mines | Discovered new exit (range 8) 739 | -10/Mines | Discovered new exit (range 14) 760 | -10/Mines | Entered Materials 760 | -9/Materials | Evolved 2 slots: Propulsion x1, Utility x1 1042 | -9/Materials | Destroyed 8 combat bots 1129 | -9/Materials | Lost 5 parts (1p1n3w) 1252 | -9/Materials | Discovered new exit (range 15) 1304 | -9/Materials | Entered Mines 1311 | -9/Mines | Joined a pair of Derelicts in attacking an 0b10 outpost 1328 | -9/Mines | Met a Derelict bent on vengeance 1442 | -9/Mines | Learned Materials stockpile data 1554 | -9/Mines | Found a damaged Exp. Sensor Array with a note attached 1558 | -9/Mines | Found Prototype Device 1559 | -9/Mines | Identified Exp. Sensor Array 1632 | -9/Mines | Discovered new exit (range 4) 1654 | -9/Mines | Entered Materials 1654 | -8/Materials | Evolved 2 slots: Propulsion x1, Utility x1 1940 | -8/Materials | Garrison activated, responded to threat 2049 | -8/Materials | Destroyed 8 combat bots 2058 | -8/Materials | Lost 3 parts (1u2w) 2411 | -8/Materials | Discovered new exit (range 16) 2441 | -8/Materials | Entered Factory 2441 | -7/Factory | Evolved 2 slots: Utility x2 2667 | -7/Factory | Fabricated R-06 Scavenger (x1) 2749 | -7/Factory | Garrison activated, responded to threat 2982 | -7/Factory | Lost 5 parts (2n3w) 3060 | -7/Factory | Lost 5 parts (2n2u1w) 3091 | -7/Factory | Core integrity fell below 50% 3293 | -7/Factory | Cargo convoy interrupted 3329 | -7/Factory | Garrison activated, responded to threat 3379 | -7/Factory | Identified exit to Garrison 3379 | -7/Factory | Entered Garrison 3385 | -7/Garrison | Installed Relay Interface Framework 3391 | -7/Garrison | Lost 4 parts (1p1n2w) 3419 | -7/Garrison | Core integrity fell below 20% 3555 | -7/Garrison | Build established: Scavenger-Mutant 3596 | -7/Garrison | Triggered checkpoint 3685 | -7/Garrison | Discovered new exit (range 9) 3707 | -7/Garrison | Entered Factory 3862 | -7/Factory | Discovered new exit (range 9) 3874 | -7/Factory | Fabricated Fusion Compressor? 3895 | -7/Factory | Entered another Factory area 3895 | -6/Factory | Evolved 2 slots: Utility x2 4019 | -6/Factory | Discovered new exit (range 9) 4137 | -6/Factory | Discovered new exit (range 16) 4376 | -6/Factory | Build established: Scavenger-Assassin 4558 | -6/Factory | Sucked down chute 4558 | -6/Factory | Entered Waste 4566 | -6/Waste | Spotted C-40 Crusher 4573 | -6/Waste | EMP discharged 4607 | -6/Waste | Spotted C-40 Crusher 4607 | -6/Waste | Spotted C-40 Crusher 4617 | -6/Waste | Spotted C-40 Crusher 4673 | -6/Waste | EMP discharged 4673 | -6/Waste | System corruption reached 10% 4708 | -6/Waste | Spotted C-40 Crusher 4749 | -6/Waste | Spotted C-40 Crusher 4773 | -6/Waste | EMP discharged 4850 | -6/Waste | Discovered new exit (range 10) 4861 | -6/Waste | Entered Factory 4970 | -6/Factory | Core integrity fell below 50% 4989 | -6/Factory | Lost 7 parts (1p4n2u) 5048 | -6/Factory | Lost 8 parts (1n3u4w) 5333 | -6/Factory | Core integrity fell below 20% 5374 | -6/Factory | Spotted B-75 Beast 5413 | -6/Factory | Destroyed by S-27 Virus with Autogun Last Messages --------------- 05363_ System corrupted: Matter fused (-9). 05363_ Target Analyzer destroyed. 05374_ K-01 Serf cleans the Fusion Modulator. 05378_ System corrupted: Matter fused (-7). 05381_ Sneak attack on K-01 Serf. 05381_ Destroyed Wheel. 05381_ Destroyed Lgt. Ion Engine. 05381_ K-01 Serf destroyed. 05390_ O-24 Administrator: "IFF HANDSHAKE FAILED. SECURING TERMINAL." 05391_ K-01 Serf cleans the Fusion Modulator. 05394_ Fabricator disabled. 05399_ ALERT: Hostiles spotted, dispatching reinforcements to Terminal F014. 05400_ Sneak attack on T-07 Excavator. 05400_ Destroyed Wheel. 05400_ Destroyed Lgt. Ion Engine. 05400_ Destroyed Mining Laser. 05402_ System corrupted: Matter fused (-6). 05407_ T-07 Excavator destroyed. 05410_ Acquired 16 matter. Map ----- +----------------------------------------------------+ | ??#=#??# "" """ """ +????? | | ###/#### """ #????? | | % # """ !!#????? | | #! """ !!#????? | | # """ #????? | | / #????? | | # #????? | | ######## #????? | | ???????# ############# #????? | | ######## # #??# #????? | | + """ #??#s#????? | | # """ #??# #????? | | # """ ???# #????? | | #+###########? #??# #????? | | ???????????! """ #??# #????? | | !???????????? """ #??# #????? | | ??????????? """ ???# #????? | | ] ???????????? ????# #????? | | ???????????####????# #????? | | #####???????????????????#=#????? | | ### ????????????????# #????? | | ???????????????#!#????? | | ""????????????????# #????? | | ""????????????????# #????? | | ### R????????????????# #????? | | ???? ""????????????????#@#????? | | ?????? ?????????????????# #????? | | ????????????????????????# #????? | | ????????????????????????# #????? | | ????????????????????????# #????? | | ????????????????????????# #????? | | ????????????????????????# #????? | | ????????????????????????# #????? | | ????????????????????????# #????? | | ????????????????????????? ?????? | | ????????????????????????? ?????? | | ????????????????????????? ?????? | | ????????????????????????? ?????? | | ????????????????????????? ?????? | | ????????????????????????? ?????? | | ????????????????????????? ?????? | | ???????????????????????????????? | | ???????????????????????????????? | | ???????????????????????????????? | | ???????????????????????????????? | | ???????????????????????????????? | | ???????????????????????????????? | | ???????????????????????????????? | | ???????????????????????????????? | | ???????????????????????????????? | +----------------------------------------------------+ Best States ------------- Heat Dissipation 56 Energy Generation 18 Energy Capacity 250 Matter Stores 300 Matter Capacity 300 Sight Range 16 Robot Scan Range 20 Terrain Scan Range 20 Terrain Scan Density 85 Armor Coverage 225 Resistance: KI 20 Resistance: TH 20 Resistance: EX 20 Resistance: EM 20 Resistance: I 20 Resistance: S 20 Resistance: P 20 Melee Speed Boost 20 Evasion (%) 55 Melee Accuracy 16 Target Analysis 5 Core Analysis 6 Recoil Reduction 4 Offensive Hacking 10 Defensive Hacking 10 Item Schematics ----------------- None Robot Schematics ------------------ None Fabricated ------------ R-06 Scavenger | x1 | -7/Factory | Preloaded Fusion Compressor | x2 | -7/Factory | Preloaded Alien Tech Used ----------------- None Achievements -------------- None Challenges ------------ None Game ------ Seed LegBlastGuard Manual? 0 Play Time 01:03:31 Cumulative 313.9 hours Start 2021.11.11 @ 00:12:50 End 2021.11.12 @ 18:54:42 Sessions 7 Manual Loads 0 Difficulty Adventurer Special Mode None Game No. 243 Rogue 195 Adventurer 48 Explorer 0 Win Type - Total 2 Types 1/0/0/1/0/0/0/0/0 Lore% 46 Gallery% 70 Achievement% 46 Wizard Run 0 Options --------- ASCII 0 Keyboard 0 Movement Mouse Keybinds 0 Fullscreen 1 Font 18/SmallcapsGlow Map View 76x50 Tactical HUD 1 Map Filters NONE Filters NONE Steam 1 RUN: aa6618cf-f709-4bfe-9b62-c5e89c6fbb6e